fUSD/lending_fUSD_20260225
["ID","MTS","AMOUNT","RATE_DAILY","PERIOD"]
[406641244,1772014116497,-10000.01,6.83e-05,2]
[406641245,1772014116615,-10000.01,6.83e-05,2]
[406641246,1772014116726,-10000.01,6.83e-05,2]
[406641247,1772014116820,-10000.01,6.83e-05,2]
[406641248,1772014121793,-10000.01,6.83e-05,2]
[406641249,1772014122054,-10000.01,6.83e-05,2]
[406641250,1772014122298,-10000.01,6.83e-05,2]
[406641251,1772014122394,-10000.01,6.83e-05,2]
[406641252,1772014122520,-10000.01,6.83e-05,2]
[406641253,1772014122646,-10000.01,6.83e-05,2]
[406641254,1772014122760,-10000.01,6.83e-05,2]
[406641255,1772014123089,-10000.01,6.83e-05,2]
[406641256,1772014123308,-10000.01,6.83e-05,2]
[406641257,1772014124911,-10000.01,6.83e-05,2]
[406641259,1772014127795,-10000.01,6.83e-05,2]
[406641260,1772014127902,-10000.01,6.83e-05,2]
[406641261,1772014128019,-10000.01,6.83e-05,2]
[406641262,1772014128111,-10000.01,6.83e-05,2]
[406641263,1772014128452,-10000.01,6.83e-05,2]
[406641264,1772014128477,-10000.01,6.83e-05,2]
[406641265,1772014128546,-10000.01,6.83e-05,2]
[406641266,1772014128806,-10000.01,6.83e-05,2]
[406641267,1772014128819,-10000.01,6.83e-05,2]
[406641268,1772014135449,-10000.01,6.83e-05,2]
[406641269,1772014136434,-10000.01,6.83e-05,2]
[406641270,1772014136566,-10000.01,6.83e-05,2]
[406641271,1772014136677,-10000.01,6.83e-05,2]
[406641272,1772014136795,-10000.01,6.83e-05,2]
[406641273,1772014136907,-10000.01,6.83e-05,2]
[406641274,1772014137029,-10000.01,6.83e-05,2]
[406641275,1772014137151,-10000.01,6.83e-05,2]
[406641276,1772014137261,-10000.01,6.83e-05,2]
[406641277,1772014142943,-300.0,6.829e-05,2]
[406641278,1772014142972,-150.0,6.829e-05,2]
[406641279,1772014143021,-9100.01,6.83e-05,2]
[406641280,1772014143047,-10000.01,6.83e-05,2]
[406641281,1772014143145,-10000.01,6.83e-05,2]
[406641282,1772014143263,-10000.01,6.83e-05,2]
[406641283,1772014143361,-10000.01,6.83e-05,2]
[406641284,1772014143501,-10000.01,6.83e-05,2]
[406641285,1772014143632,-10000.01,6.83e-05,2]
[406641286,1772014143735,-10000.01,6.83e-05,2]
[406641287,1772014143950,-10000.01,6.83e-05,2]
[406641293,1772014231903,-300.0,6.828e-05,2]
[406641294,1772014231916,-271.68055395,6.828e-05,2]
[406641295,1772014231928,-928.31944605,6.828e-05,2]
[406641296,1772014231937,-209.0,6.828e-05,2]
[406641297,1772014231949,-5000.0,6.829e-05,2]
[406641298,1772014231959,-1180.01532193,6.829e-05,2]
[406641299,1772014231968,-500.0,6.829e-05,2]
[406641300,1772014231977,-500.0,6.829e-05,2]
[406641301,1772014231988,-500.0,6.829e-05,2]
[406641302,1772014231997,-500.0,6.829e-05,2]
[406641303,1772014232007,-500.0,6.829e-05,2]
[406641304,1772014232017,-500.0,6.829e-05,2]
[406641305,1772014232026,-500.0,6.829e-05,2]
[406641306,1772014232036,-500.0,6.829e-05,2]
[406641307,1772014232047,-500.0,6.829e-05,2]
[406641308,1772014232056,-500.0,6.829e-05,2]
[406641309,1772014232065,-500.0,6.829e-05,2]
[406641310,1772014232075,-500.0,6.829e-05,2]
[406641312,1772014232084,-500.0,6.829e-05,2]
[406641314,1772014232093,-500.0,6.829e-05,2]
[406641316,1772014232102,-500.0,6.829e-05,2]
[406641318,1772014232111,-500.0,6.829e-05,2]
[406641320,1772014232120,-500.0,6.829e-05,2]
[406641322,1772014232129,-393.8791079,6.829e-05,2]
[406641324,1772014232138,-500.0,6.829e-05,2]
[406641326,1772014232147,-500.0,6.829e-05,2]
[406641328,1772014232156,-500.0,6.829e-05,2]
[406641330,1772014232165,-500.0,6.829e-05,2]
[406641332,1772014232175,-321.86173716,6.829e-05,2]
[406641334,1772014232186,-178.13826284,6.829e-05,2]
[406641336,1772014232195,-500.0,6.829e-05,2]
[406641338,1772014232204,-481.80530787,6.829e-05,2]
[406641341,1772014232216,-18.19469213,6.829e-05,2]
[406641343,1772014232226,-500.0,6.829e-05,2]
[406641345,1772014232237,-500.0,6.829e-05,2]
[406641347,1772014232246,-594.19971498,6.83e-05,2]
[406641355,1772014232322,-55236.25604138,6.83e-05,2]
[406641358,1772014232333,-18937.58243453,6.83e-05,2]
[406641360,1772014232345,-27206.12092549,6.83e-05,2]
[406641362,1772014232357,-2338.47877344,6.83e-05,2]
[406641364,1772014232368,-3037.07724405,6.83e-05,2]
[406641366,1772014232379,-346.81349666,6.83e-05,2]
[406641368,1772014232390,-987.75961641,6.83e-05,2]
[406641371,1772014232400,-798.714997,6.83e-05,2]
[406641373,1772014232412,-871.14161176,6.83e-05,2]
[406641375,1772014232426,-612.78854042,6.83e-05,2]
[406641393,1772014237937,-1172.96774003,6.83e-05,2]
[406641394,1772014237949,-873.39,6.83e-05,2]
[406641395,1772014237992,-1113.58060195,6.83e-05,2]
[406641396,1772014238050,-502.36887877,6.83e-05,2]
[406641403,1772014240155,-10055.97010541,6.83e-05,2]
[406641404,1772014240166,-16348.02024587,6.83e-05,2]
[406641405,1772014240177,-264.73351252,6.83e-05,2]
[406641406,1772014240188,-710.27692071,6.83e-05,2]
[406641416,1772014243228,-957.29998085,6.83e-05,2]
[406641463,1772014245789,-503.0,6.83e-05,2]
[406641464,1772014245843,-3260.44804914,6.83e-05,2]
[406641465,1772014245854,-3533.91150947,6.83e-05,2]
[406641466,1772014246109,-48617.9632,6.83e-05,2]
[406641469,1772014296050,172.77261064,6.694e-05,2]
[406641470,1772014296071,7.48238936,6.694e-05,2]
[406641471,1772014296100,1141.35891596,6.694e-05,2]
[406641472,1772014296122,24.94008404,6.694e-05,2]
[406641473,1772014309944,500.0,6.73e-05,2]
[406641474,1772014401390,155.35,6.217e-05,2]
[406641477,1772014492236,468.55122128,6.73e-05,2]
[406641478,1772014492260,1148.84130532,6.73e-05,2]
[406641479,1772014492283,1148.84130532,6.73e-05,2]
[406641480,1772014492305,1148.84130532,6.73e-05,2]
[406641481,1772014492327,1148.84130532,6.73e-05,2]
[406641482,1772014492349,1148.84130532,6.73e-05,2]
[406641483,1772014492371,1148.84130532,6.73e-05,2]
[406641484,1772014550629,219.3,7.822e-05,3]
[406641487,1772014883280,-300.0,6.727e-05,2]
[406641488,1772014883301,-4700.0,6.728e-05,2]
[406641489,1772014886010,-300.0,6.728e-05,2]
[406641490,1772014886030,-969.0,6.728e-05,2]
[406641491,1772014886052,-1200.0,6.728e-05,2]
[406641492,1772014886071,-208.0,6.728e-05,2]
[406641493,1772014886090,-2323.0,6.729e-05,2]
[406641494,1772014887372,-2677.0,6.729e-05,2]
[406641495,1772014887392,-150.0,6.729e-05,2]
[406641496,1772014887411,-160.85158311,6.729e-05,2]
[406641497,1772014887438,-233.74532456,6.729e-05,2]
[406641498,1772014887467,-382.61046311,6.729e-05,2]
[406641499,1772014887496,-500.0,6.729e-05,2]
[406641500,1772014887520,-500.0,6.729e-05,2]
[406641501,1772014887544,-395.79262922,6.729e-05,2]
[406641502,1772014888729,-92.41616055,6.729e-05,2]
[406641503,1772014888755,-4907.58383945,6.73e-05,2]
[406641504,1772014889786,-5000.0,6.73e-05,2]
[406641505,1772014890961,-5000.0,6.73e-05,2]
[406641506,1772014891884,-5000.0,6.73e-05,2]
[406641507,1772014892762,-5000.0,6.73e-05,2]
[406641508,1772014893700,-5000.0,6.73e-05,2]
[406641509,1772014894593,-5000.0,6.73e-05,2]
[406641510,1772014895448,-5000.0,6.73e-05,2]
[406641511,1772014896027,180.25623967,6.596e-05,2]
[406641512,1772014896060,933.039,6.596e-05,2]
[406641513,1772014896182,-5000.0,6.73e-05,2]
[406641514,1772014896986,-5000.0,6.73e-05,2]
[406641515,1772014897757,-5000.0,6.73e-05,2]
[406641516,1772014918590,-5000.0,6.73e-05,2]
[406641517,1772014919481,-5000.0,6.73e-05,2]
[406641518,1772014920410,-5000.0,6.73e-05,2]
[406641519,1772014921859,-300.0,6.729e-05,2]
[406641520,1772014921886,-4700.0,6.73e-05,2]
[406641521,1772014922392,-5000.0,6.73e-05,2]
[406641522,1772014922953,-5000.0,6.73e-05,2]
[406641523,1772014923519,-5000.0,6.73e-05,2]
[406641524,1772014924079,-5000.0,6.73e-05,2]
[406641525,1772014924567,-5000.0,6.73e-05,2]
[406641526,1772014925013,-5000.0,6.73e-05,2]
[406641527,1772014925480,-5000.0,6.73e-05,2]
[406641528,1772014925832,-5000.0,6.73e-05,2]
[406641529,1772014926288,-5000.0,6.73e-05,2]
[406641530,1772014926589,-5000.0,6.73e-05,2]
[406641531,1772014926890,-5000.0,6.73e-05,2]
[406641532,1772014927323,-5000.0,6.73e-05,2]
[406641533,1772014927915,-5000.0,6.73e-05,2]
[406641534,1772014928369,-5000.0,6.73e-05,2]
[406641535,1772014928962,-5000.0,6.73e-05,2]
[406641536,1772014929271,-5000.0,6.73e-05,2]
[406641537,1772014929668,-5000.0,6.73e-05,2]
[406641538,1772014930478,-5000.0,6.73e-05,2]
[406641539,1772014931058,-5000.0,6.73e-05,2]
[406641540,1772014931505,-5000.0,6.73e-05,2]
[406641541,1772014932534,-5000.0,6.73e-05,2]
[406641542,1772014933499,-5000.0,6.73e-05,2]
[406641543,1772014934172,-5000.0,6.73e-05,2]
[406641544,1772014934578,-5000.0,6.73e-05,2]
[406641545,1772014935038,-5000.0,6.73e-05,2]
[406641546,1772014967934,8886.71476033,6.63e-05,2]
[406641547,1772014967958,10000.01,6.63e-05,2]
[406641548,1772014967983,10000.01,6.63e-05,2]
[406641549,1772014974258,175.404003,0.00011096,120]
[406641550,1772014989045,151.0,0.00011096,120]
[406641551,1772015023509,-300.0,6.629e-05,2]
[406641552,1772015023534,-4700.0,6.63e-05,2]
[406641553,1772015024006,-5000.0,6.63e-05,2]
[406641554,1772015024583,-5000.0,6.63e-05,2]
[406641555,1772015025136,-5000.0,6.63e-05,2]
[406641556,1772015025449,-1818.34,6.6e-05,2]
[406641557,1772015025473,-3181.66,6.63e-05,2]
[406641558,1772015029722,151.0,0.00011096,120]
[406641559,1772015033621,-5000.0,6.63e-05,2]
[406641560,1772015034030,-5000.0,6.63e-05,2]
[406641561,1772015034332,-5000.0,6.63e-05,2]
[406641562,1772015034847,-5000.0,6.63e-05,2]
[406641563,1772015035291,-5000.0,6.63e-05,2]
[406641564,1772015057796,-150.0,6.629e-05,2]
[406641565,1772015057823,-4850.0,6.63e-05,2]
[406641566,1772015062069,-5000.0,6.63e-05,2]
[406641567,1772015064724,-5000.0,6.63e-05,2]
[406641568,1772015078112,-163.62172719,6.629e-05,2]
[406641569,1772015078138,-267.82732418,6.629e-05,2]
[406641570,1772015078166,-4568.55094863,6.63e-05,2]
[406641571,1772015080964,-5000.0,6.63e-05,2]
[406641572,1772015082728,-5000.0,6.63e-05,2]
[406641573,1772015261570,4234.79,6.487e-05,2]
[406641576,1772015393830,-1114.36802184,6.53e-05,2]
[406641577,1772015394132,-2228.73604368,6.53e-05,2]
[406641578,1772015394236,-4457.47208736,6.53e-05,2]
[406641579,1772015394359,-1085.06582528,6.53e-05,2]
[406641580,1772015394386,-200.4571,6.53e-05,2]
[406641581,1772015394418,-2428.96414944,6.53e-05,2]
[406641582,1772015394519,-2571.03585056,6.53e-05,2]
[406641594,1772015431940,-207.0,6.58e-05,2]
[406641597,1772015431952,-250.0,6.58e-05,2]
[406641599,1772015431963,-3393.93,6.58e-05,2]
[406641600,1772015431974,-300.0,6.628e-05,2]
[406641601,1772015431985,-1200.0,6.628e-05,2]
[406641602,1772015431996,-300.0,6.628e-05,2]
[406641603,1772015432007,-300.0,6.628e-05,2]
[406641604,1772015432018,-150.0,6.629e-05,2]
[406641605,1772015432030,-500.0,6.629e-05,2]
[406641606,1772015432040,-500.0,6.629e-05,2]
[406641607,1772015432051,-500.0,6.629e-05,2]
[406641608,1772015432064,-8929.38320321,6.63e-05,2]
[406641609,1772015432077,-47.95016373,6.63e-05,2]
[406641610,1772015432088,-1507.30917284,6.63e-05,2]
[406641611,1772015432100,-1351.14592439,6.63e-05,2]
[406641612,1772015432121,-1283.74605043,6.63e-05,2]
[406641613,1772015432140,-732.5,6.63e-05,2]
[406641614,1772015432153,-46192.32242462,6.63e-05,2]
[406641615,1772015432166,-977492.87970759,6.63e-05,2]
[406641616,1772015432179,-83358.88971676,6.63e-05,2]
[406641617,1772015432192,-190495.19765427,6.63e-05,2]
[406641618,1772015432210,-419.3,6.63e-05,2]
[406641619,1772015433356,4857.93829888,6.53e-05,2]
[406641620,1772015433381,10000.01,6.53e-05,2]
[406641621,1772015433405,10000.01,6.53e-05,2]
[406641622,1772015433428,10000.01,6.53e-05,2]
[406641623,1772015433462,10000.01,6.53e-05,2]
[406641624,1772015433492,10000.01,6.53e-05,2]
[406641667,1772015439030,-12517.17323228,6.53e-05,2]
[406641674,1772015440536,-1967.00999999,6.53e-05,2]
[406641695,1772015446107,-1003.0,6.53e-05,2]
[406641696,1772015446165,-501.8385569,6.53e-05,2]
[406641699,1772015448259,-58492.65823338,6.53e-05,2]
[406641830,1772015461542,300.0,6.529e-05,2]
[406641831,1772015496051,1332.056,6.4e-05,2]
[406641832,1772015496084,165.737,6.4e-05,2]
[406641833,1772015521251,300.0,6.529e-05,2]
[406641834,1772015524310,2042.95415048,6.4e-05,2]
[406641835,1772015538213,222.58,6.5e-05,2]
[406641836,1772015582407,300.0,6.529e-05,2]
[406641837,1772015582919,150.0,6.529e-05,2]
[406641838,1772015586115,303.92450156,6.529e-05,2]
[406641839,1772015599777,500.0,6.529e-05,2]
[406641840,1772015599814,500.0,6.529e-05,2]
[406641841,1772015599846,500.0,6.529e-05,2]
[406641842,1772015599880,500.0,6.529e-05,2]
[406641843,1772015599917,500.0,6.529e-05,2]
[406641844,1772015599951,500.0,6.529e-05,2]
[406641845,1772015599983,600.28044376,6.529e-05,2]
[406641846,1772015600020,500.0,6.529e-05,2]
[406641847,1772015600064,500.0,6.529e-05,2]
[406641848,1772015600102,500.0,6.529e-05,2]
[406641849,1772015600137,500.0,6.529e-05,2]
[406641850,1772015600170,500.0,6.529e-05,2]
[406641851,1772015600205,500.0,6.529e-05,2]
[406641852,1772015600239,500.0,6.529e-05,2]
[406641853,1772015600274,500.0,6.529e-05,2]
[406641854,1772015600308,500.0,6.529e-05,2]
[406641855,1772015600342,500.0,6.529e-05,2]
[406641856,1772015600388,500.0,6.529e-05,2]
[406641857,1772015600560,500.0,6.529e-05,2]
[406641858,1772015600595,500.0,6.529e-05,2]
[406641859,1772015600628,500.0,6.529e-05,2]
[406641860,1772015600662,500.0,6.529e-05,2]
[406641861,1772015600697,500.0,6.529e-05,2]
[406641862,1772015600734,500.0,6.529e-05,2]
[406641863,1772015600794,500.0,6.529e-05,2]
[406641864,1772015600833,500.0,6.529e-05,2]
[406641865,1772015600867,500.0,6.529e-05,2]
[406641866,1772015600906,500.0,6.529e-05,2]
[406641867,1772015601161,500.0,6.529e-05,2]
[406641868,1772015601197,500.0,6.529e-05,2]
[406641869,1772015601234,500.0,6.529e-05,2]
[406641870,1772015601272,500.0,6.529e-05,2]
[406641871,1772015601311,500.0,6.529e-05,2]
[406641872,1772015601352,500.0,6.529e-05,2]
[406641873,1772015611551,500.0,6.529e-05,2]
[406641874,1772015611586,500.0,6.529e-05,2]
[406641875,1772015611630,500.0,6.529e-05,2]
[406641876,1772015611667,500.0,6.529e-05,2]
[406641877,1772015611699,500.0,6.529e-05,2]
[406641878,1772015611743,500.0,6.529e-05,2]
[406641879,1772015611775,500.0,6.529e-05,2]
[406641880,1772015611806,500.0,6.529e-05,2]
[406641881,1772015611840,500.0,6.529e-05,2]
[406641882,1772015611873,500.0,6.529e-05,2]
[406641883,1772015611918,500.0,6.529e-05,2]
[406641884,1772015611958,500.0,6.529e-05,2]
[406641885,1772015611994,500.0,6.529e-05,2]
[406641886,1772015612032,500.0,6.529e-05,2]
[406641887,1772015612066,500.0,6.529e-05,2]
[406641888,1772015612104,500.0,6.529e-05,2]
[406641890,1772015640979,300.0,6.529e-05,2]
[406641891,1772015701415,1200.0,6.529e-05,2]
[406641892,1772015719740,169.30480574,0.0001789,120]
[406641893,1772015738003,-5647.0590676,6.53e-05,2]
[406641894,1772015738205,-10000.01,6.53e-05,2]
[406641895,1772015738341,-10000.01,6.53e-05,2]
[406641896,1772015738436,-10000.01,6.53e-05,2]
[406641897,1772015738546,-10000.01,6.53e-05,2]
[406641898,1772015738743,-10000.01,6.53e-05,2]
[406641899,1772015741171,-10000.01,6.53e-05,2]
[406641900,1772015744040,-10000.01,6.53e-05,2]
[406641901,1772015744152,-10000.01,6.53e-05,2]
[406641902,1772015744264,-10000.01,6.53e-05,2]
[406641903,1772015744429,-10000.01,6.53e-05,2]
[406641904,1772015744543,-10000.01,6.53e-05,2]
[406641905,1772015762327,300.0,6.529e-05,2]
[406641906,1772015762548,150.0,6.529e-05,2]
[406641907,1772015764383,1279.02931103,6.53e-05,2]
[406641908,1772015764524,5138.09436464,6.53e-05,2]
[406641909,1772015764656,2918.70152124,6.53e-05,2]
[406641910,1772015766133,212.74715109,6.529e-05,2]
[406641911,1772015772023,1141.74329564,6.53e-05,2]
[406641912,1772015772054,4887.50424153,6.53e-05,2]
[406641913,1772015772188,7145.19400354,6.53e-05,2]
[406641914,1772015780107,500.0,6.529e-05,2]
[406641915,1772015780164,500.0,6.529e-05,2]
[406641916,1772015780209,510.02804437,6.529e-05,2]
[406641917,1772015784147,55645.33260125,6.52e-05,2]
[406641918,1772015793896,154.15417401,6.529e-05,2]
[406641919,1772015795298,167.70839791,6.529e-05,2]
[406641920,1772015821246,300.0,6.529e-05,2]
[406641922,1772015875583,-2000.0,6.53e-05,2]
[406641923,1772015877454,-2000.0,6.53e-05,2]
[406641924,1772015878427,-2000.0,6.53e-05,2]
[406641925,1772015878839,-2000.0,6.53e-05,2]
[406641926,1772015879139,-2000.0,6.53e-05,2]
[406641927,1772015879558,-2000.0,6.53e-05,2]
[406641928,1772015880024,-2000.0,6.53e-05,2]
[406641929,1772015880366,-2000.0,6.53e-05,2]
[406641930,1772015880795,-2000.0,6.53e-05,2]
[406641931,1772015881271,300.0,6.529e-05,2]
[406641932,1772015881305,-2000.0,6.53e-05,2]
[406641933,1772015881628,-2000.0,6.53e-05,2]
[406641934,1772015882186,-2000.0,6.53e-05,2]
[406641935,1772015882548,-2000.0,6.53e-05,2]
[406641936,1772015882938,-2000.0,6.53e-05,2]
[406641937,1772015883234,-2000.0,6.53e-05,2]
[406641938,1772015883664,-2000.0,6.53e-05,2]
[406641939,1772015883966,-2000.0,6.53e-05,2]
[406641940,1772015884378,-2000.0,6.53e-05,2]
[406641941,1772015884831,-2000.0,6.53e-05,2]
[406641942,1772015885313,-2000.0,6.53e-05,2]
[406641943,1772015885737,-2000.0,6.53e-05,2]
[406641944,1772015886057,-2000.0,6.53e-05,2]
[406641945,1772015886518,-2000.0,6.53e-05,2]
[406641946,1772015886839,-2000.0,6.53e-05,2]
[406641947,1772015887255,-2000.0,6.53e-05,2]
[406641948,1772015887698,-2000.0,6.53e-05,2]
[406641949,1772015888019,-2000.0,6.53e-05,2]
[406641950,1772015888451,-2000.0,6.53e-05,2]
[406641951,1772015888867,-2000.0,6.53e-05,2]
[406641952,1772015889183,-2000.0,6.53e-05,2]
[406641953,1772015889604,-2000.0,6.53e-05,2]
[406641954,1772015889983,-2000.0,6.53e-05,2]
[406641955,1772015890425,-2000.0,6.53e-05,2]
[406641956,1772015890826,-2000.0,6.53e-05,2]
[406641957,1772015891144,-2000.0,6.53e-05,2]
[406641958,1772015891598,-2000.0,6.53e-05,2]
[406641959,1772015891933,-2000.0,6.53e-05,2]
[406641960,1772015892360,-2000.0,6.53e-05,2]
[406641961,1772015892779,-2000.0,6.53e-05,2]
[406641962,1772015893302,-2000.0,6.53e-05,2]
[406641963,1772015893505,-2000.0,6.53e-05,2]
[406641964,1772015893874,-2000.0,6.53e-05,2]
[406641965,1772015894460,-2000.0,6.53e-05,2]
[406641966,1772015894673,-2000.0,6.53e-05,2]
[406641967,1772015895166,-2000.0,6.53e-05,2]
[406641968,1772015895507,-2000.0,6.53e-05,2]
[406641969,1772015895942,-2000.0,6.53e-05,2]
[406641970,1772015896395,-2000.0,6.53e-05,2]
[406641971,1772015896695,-2000.0,6.53e-05,2]
[406641972,1772015897113,-2000.0,6.53e-05,2]
[406641973,1772015897536,-2000.0,6.53e-05,2]
[406641974,1772015897940,222.58,6.5e-05,2]
[406641975,1772015897970,-2000.0,6.53e-05,2]
[406641976,1772015898514,-2000.0,6.53e-05,2]
[406641977,1772015898699,-2000.0,6.53e-05,2]
[406641978,1772015899125,-2000.0,6.53e-05,2]
[406641979,1772015899536,-2000.0,6.53e-05,2]
[406641980,1772015899968,-2000.0,6.53e-05,2]
[406641981,1772015900296,-2000.0,6.53e-05,2]
[406641982,1772015900745,-2000.0,6.53e-05,2]
[406641983,1772015901174,-2000.0,6.53e-05,2]
[406641984,1772015901547,-2000.0,6.53e-05,2]
[406641985,1772015902202,-2000.0,6.53e-05,2]
[406641986,1772015902532,-2000.0,6.53e-05,2]
[406641987,1772015903627,-2000.0,6.53e-05,2]
[406641988,1772015904429,-2000.0,6.53e-05,2]
[406641989,1772015906214,-2000.0,6.53e-05,2]
[406641990,1772015907379,-2000.0,6.53e-05,2]
[406641991,1772015908385,-2000.0,6.53e-05,2]
[406641992,1772015913298,-900.0,6.53e-05,2]
[406641993,1772015936124,859.0,0.0001789,120]
[406641995,1772016015329,1066.15,6.231e-05,2]
[406641996,1772016114037,500.0,6.529e-05,2]
[406641997,1772016118314,152.15095844,6.529e-05,2]
[406641998,1772016133808,500.0,6.529e-05,2]
[406641999,1772016133842,500.0,6.529e-05,2]
[406642000,1772016133880,500.0,6.529e-05,2]
[406642001,1772016133921,500.0,6.529e-05,2]
[406642002,1772016133959,202.11275908,6.529e-05,2]
[406642003,1772016133994,500.0,6.529e-05,2]
[406642004,1772016134029,500.0,6.529e-05,2]
[406642005,1772016134066,500.0,6.529e-05,2]
[406642006,1772016134103,500.0,6.529e-05,2]
[406642007,1772016134142,500.0,6.529e-05,2]
[406642008,1772016134183,500.0,6.529e-05,2]
[406642009,1772016134224,500.0,6.529e-05,2]
[406642010,1772016134257,500.0,6.529e-05,2]
[406642011,1772016134461,500.0,6.529e-05,2]
[406642012,1772016134509,500.0,6.529e-05,2]
[406642013,1772016134552,500.0,6.529e-05,2]
[406642014,1772016257587,500.0,6.529e-05,2]
[406642015,1772016257620,500.0,6.529e-05,2]
[406642016,1772016257670,500.0,6.529e-05,2]
[406642017,1772016257732,427.10632465,6.529e-05,2]
[406642018,1772016257761,500.0,6.529e-05,2]
[406642019,1772016455213,-250.0,6.58e-05,2]
[406642020,1772016481828,9500.01,6.57e-05,2]
[406642021,1772016481851,6723.01,6.57e-05,2]
[406642029,1772016632199,-250.0,6.58e-05,2]
[406642030,1772016632209,-5000.0,6.58e-05,2]
[406642031,1772016632219,-207.0,6.58e-05,2]
[406642032,1772016632229,-151.0,6.601e-05,2]
[406642033,1772016632238,-156.587,6.601e-05,2]
[406642034,1772016632248,-162.380719,6.601e-05,2]
[406642035,1772016632257,-160.11759511,6.601e-05,2]
[406642036,1772016632267,-300.0,6.611e-05,2]
[406642037,1772016632276,-158.05262145,6.611e-05,2]
[406642038,1772016632291,-1041.94737855,6.611e-05,2]
[406642039,1772016632310,-300.0,6.611e-05,2]
[406642040,1772016632322,-3966.89766249,6.612e-05,2]
[406642041,1772016632332,-210.17,6.628e-05,2]
[406642042,1772016632341,-1356.715,6.671e-05,2]
[406642043,1772016632351,-167.45,6.671e-05,2]
[406642044,1772016632360,-300.0,6.696e-05,2]
[406642045,1772016632369,-166.66,6.697e-05,2]
[406642046,1772016632379,-544484.95605959,6.707e-05,2]
[406642047,1772016632391,-50652.2418535,6.707e-05,2]
[406642048,1772016632402,-17578.80826534,6.707e-05,2]
[406642092,1772016640978,-81.05329336,6.706e-05,2]
[406642102,1772016643585,-175.77763421,6.706e-05,2]
[406642103,1772016643595,-269.67848052,6.706e-05,2]
[406642104,1772016643604,-500.0,6.706e-05,2]
[406642105,1772016643614,-523.57120038,6.706e-05,2]
[406642106,1772016643623,-9971.20374484,6.707e-05,2]
[406642110,1772016658319,-5000.0,6.707e-05,2]
[406642111,1772016659434,-5000.0,6.707e-05,2]
[406642112,1772016660360,-5000.0,6.707e-05,2]
[406642113,1772016661213,-5000.0,6.707e-05,2]
[406642114,1772016662056,-300.0,6.706e-05,2]
[406642115,1772016662080,-4700.0,6.707e-05,2]
[406642116,1772016662886,-300.0,6.706e-05,2]
[406642117,1772016662908,-150.0,6.706e-05,2]
[406642118,1772016662932,-4550.0,6.707e-05,2]
[406642119,1772016663904,-5000.0,6.707e-05,2]
[406642120,1772016664966,-5000.0,6.707e-05,2]
[406642121,1772016665880,-5000.0,6.707e-05,2]
[406642122,1772016666879,-5000.0,6.707e-05,2]
[406642123,1772016667538,-5000.0,6.707e-05,2]
[406642124,1772016668374,-5000.0,6.707e-05,2]
[406642125,1772016669154,-5000.0,6.707e-05,2]
[406642126,1772016669908,-5000.0,6.707e-05,2]
[406642127,1772016670672,-5000.0,6.707e-05,2]
[406642128,1772016671409,-5000.0,6.707e-05,2]
[406642129,1772016672187,-5000.0,6.707e-05,2]
[406642130,1772016672872,-5000.0,6.707e-05,2]
[406642131,1772016673610,-5000.0,6.707e-05,2]
[406642132,1772016674557,-5000.0,6.707e-05,2]
[406642133,1772016675030,-5000.0,6.707e-05,2]
[406642134,1772016675635,-5000.0,6.707e-05,2]
[406642135,1772016676270,-5000.0,6.707e-05,2]
[406642136,1772016677092,-5000.0,6.707e-05,2]
[406642137,1772016677655,-5000.0,6.707e-05,2]
[406642138,1772016678334,-5000.0,6.707e-05,2]
[406642139,1772016679022,-5000.0,6.707e-05,2]
[406642140,1772016679811,-5000.0,6.707e-05,2]
[406642141,1772016680461,-5000.0,6.707e-05,2]
[406642142,1772016681186,-5000.0,6.707e-05,2]
[406642143,1772016696034,1085.372,6.573e-05,2]
[406642144,1772016696075,167.45,6.573e-05,2]
[406642145,1772016772640,500.0,6.557e-05,2]
[406642146,1772016854840,1500.0,6.147e-05,2]
[406642147,1772016882748,-275.0001,6.607e-05,2]
[406642148,1772016882850,9450.0098,6.147e-05,2]
[406642149,1772016882871,4989.7802,6.147e-05,2]
[406642150,1772016949793,156.91,4.953e-05,2]
[406642151,1772017005430,10000.01,6.607e-05,2]